Workbook

Sheet Plantilla 1° Octubre Total
A4: Nombre | B4: RFC | C4: Adscripción | D4: DEPARTAMENTO | E4: SUELDO | F4: SUBSIDIO | G4: I.S.T.P | H4: NETO A PAGAR
A5: (2) | B5: (3) | C5: (4) | D5: (4)
A7: NOMINA DE ADMINISTRATIVOS 1° QUINCENA DEL MES DE OCTUBRE 2015
A8: ROSA MARIA GODINEZ ORTEGA | C8: REGIDOR | D8: GOBERNACION | E8: =H8+G8 -> 8821.95 | G8: 1337.15 | H8: 7484.8
A9: J. NATIVIDAD GODINEZ ORTEGA | C9: REGIDOR | D9: GOBERNACION | E9: =H9+G9 -> 8821.95 | G9: 1337.15 | H9: 7484.8
A10: JOSE ALBERTO ESTRADA CRUZ | C10: REGIDOR | D10: GOBERNACION | E10: 8821.95 | G10: 1337.15 | H10: 7484.8
A11: MA. DOLORES CEJA NUÑO | B11: LOBG7708065A9 | C11: REGIDOR | D11: GOBERNACION | E11: 8821.95 | G11: 1337.15 | H11: 7484.8
A12: LORENZO CASILLAS GONZALEZ | C12: REGIDOR | D12: GOBERNACION | E12: 8821.95 | G12: 1337.15 | H12: 7484.8
A13: GUSTAVO ORTEGA RODRIGUEZ | C13: REGIDOR | D13: GOBERNACION | E13: 8821.95 | G13: 1337.15 | H13: 7484.8
A14: RAMIRO GIL PEREZ | B14: LOSR6610074R9 | C14: REGIDOR | D14: GOBERNACION | E14: 8821.95 | G14: 1337.15 | H14: 7484.8
A15: GOMEZ MENDOZA MIGUEL ANGEL | C15: REGIDOR | D15: GOBERNACION | E15: 8821.95 | G15: 1337.15 | H15: 7484.8
A16: ERIKA YULIANA GODINEZ CASTELLANOS | C16: REGIDOR | D16: GOBERNACION | E16: 8821.95 | G16: 1337.15 | H16: =E16-G16 -> 7484.8
A17: AGUILAR GARCIA JUAN LUIS | B17: VESA610828AI0 | C17: PRESIDENTE | D17: PRESIDENCIA | E17: 18000 | G17: 3584.65 | H17: 14415.35
A18: NAVARRO SAHAGUN ARACELI | B18: NASA910913G42 | C18: SECRETARIA | D18: PRESIDENCIA | E18: 2981.4 | G18: 75 | H18: 2906.4
A19: SANTANA MENDEZ JORGE | B19: GAGA7809173B9 | C19: SECRETARIO PARTICULAR | D19: PRESIDENCIA | E19: =H19+G19 -> 4461.9 | G19: 427.12 | H19: 4034.78 | I19: =J19/30 -> 297.4666667 | J19: 8924
A20: GUTIERREZ ORTEGA JOSE ALONZO | C20: DIRECTOR DE PLANEACION | D20: PLANEACION Y EVALUACION MUNICIPAL | E20: 6679.5 | G20: 879.48 | H20: =E20-G20 -> 5800.02
A21: GARCIA RODRIGUEZ DONALDO HAZEL | C21: AUXILIAR DE PLANEACION | D21: PLANEACION Y EVALUACION MUNICIPAL | E21: 2268.75 | F21: 31.99 | H21: =E21+F21 -> 2300.74
A22: BALLESTEROS ESTRADA NICOLAS | B22: AIOP830807CQ1 | C22: SINDICO | D22: SINDICATURA | E22: =H22+G22 -> 8821.5 | G22: 1337 | H22: 7484.5 | I22: =J22/30 -> 588.1 | J22: 17643
A23: HERNANDEZ ALVAREZ ANTONIO | C23: JEFE DE REGLAMENTOS | D23: SINDICATURA | E23: =H23-F23 -> 1719.9 | F23: 94.74 | H23: 1814.64
A24: NAVARRO RAMIREZ SERGIO ALEJANDRO | B24: OEMC7407254L2 | C24: JURIDICO | D24: SINDICATURA | E24: 5953.5 | G24: 724.4 | H24: =E24-G24 -> 5229.1 | I24: =J24/30 -> 396.9 | J24: 11907
A25: SUAREZ BERNAL PEDRO | C25: JEFE REGLAMENTOS | D25: SINDICATURA | E25: 3150 | G25: 113.57 | H25: =E25-G25 -> 3036.43 | I25: =J25/30 -> 210 | J25: 6300
A26: BAÑUELOS LOPEZ J. CRUZ FERNANDO | B26: CACX8504257RA | C26: SECRETARIO GENERAL | D26: SECRETARIA GENERAL | E26: 6930 | G26: 932.99 | H26: =E26-G26 -> 5997.01 | I26: =J26/30 -> 400 | J26: 12000
A27: RANGEL BAÑUELOS ELIA JAQUELINE | B27: AUCB841117RT7 | C27: SECRETARIA | D27: SECRETARIA GENERAL | E27: =H27-F27 -> 2019.45 | F27: 70.35 | H27: 2089.8 | I27: =J27/30 -> 134.6333333 | J27: 4039
A28: CERVANTES RIVERA JUAN CARLOS | B28: CALJ7006041G0 | C28: MEDICO MUNICIPAL | D28: SERVICIOS MEDICOS MUNICIPALES | E28: 6520.05 | G28: 845.42 | H28: =E28-G28 -> 5674.63 | I28: =J28/30 -> 434.6666667 | J28: 13040
A29: JIMENEZ GONZALEZ ROSA | B29: JIGR661115B91 | C29: COMUSIDA | D29: SERVICIOS MEDICOS MUNICIPALES | E29: =H29+G29 -> 2981.4 | G29: 80 | H29: 2901.4
A30: ARIZAGA ORTEGA GRISELDA | B30: AIOG840601AH1 | C30: SECRETARIA | D30: OFICIALIA MAYOR | E30: =H30+G30 -> 2981.36 | G30: 74.96 | H30: 2906.4
A31: BAÑUELOS LOPEZ ROCIO | B31: BALR881002GKA | C31: AUX CONTROL Y COMPRAS | D31: OFICIALIA MAYOR | E31: =H31+G31 -> 2683.95 | G31: 42.55 | H31: 2641.4
A32: FLORES RODRIGUEZ MARIO | B32: FORM831114QT4 | C32: MECANICO | D32: OFICIALIA MAYOR | E32: =H32+G32 -> 3402 | G32: 141 | H32: 3261
A33: VARGAS GARCIA MA. DOLORES | B33: VAGM690331F8A | C33: INTENDENTE | D33: OFICIALIA MAYOR | E33: =H33-F33 -> 1473.07 | F33: 117.33 | H33: 1590.4
A34: HERNANDEZ GUTIERREZ ALMA DELIA | B34: HEGA711221E2A | C34: INTENDENTE | D34: OFICIALIA MAYOR | E34: =H34-F34 -> 1473.07 | F34: 117.33 | H34: 1590.4
A35: NAVARRETE ALFARO MA DEL ROSARIO | C35: INTENDENTE | D35: OFICIALIA MAYOR | E35: =H35+G35 -> 2236.47 | G35: 55.47 | H35: 2181
A36: LOPEZ HERNANDEZ MA.ROSARIO | B36: LOHM720305EF8 | C36: INTENDENTE | D36: OFICIALIA MAYOR | E36: =H36-F36 -> 1473.07 | F36: 117.33 | H36: 1590.4
A37: SANCHEZ LOPEZ ERICK | B37: GAMJ780418MM9 | C37: OFICIAL MAYOR | D37: OFICIALIA MAYOR | E37: 6679.5 | G37: 879.48 | H37: =E37-G37 -> 5800.02
A38: LOPEZ LOPEZ MAYRA ALEJANDRA | B38: PECE880321TL0 | C38: ENCARG COMUNIC SOCIAL | D38: OFICIALIA MAYOR | E38: 3000 | G38: 76.98 | H38: =E38-G38 -> 2923.02 | I38: =J38/30 -> 200 | J38: 6000
A39: NAVARRO CASILLAS FERNANDO | C39: AUX COMUNIC SOCIAL A | D39: OFICIALIA MAYOR | E39: 2572.5 | G39: 15.55 | H39: =E39-G39 -> 2556.95 | I39: =J39/30 -> 183.3333333 | J39: 5500
A40: LOPEZ RAMOS RODOLFO | C40: AUX COMUNIC SOCIAL B | D40: OFICIALIA MAYOR | E40: 2572.5 | G40: 15.55 | H40: =E40-G40 -> 2556.95
A41: RANGEL ARELLANO RICARDO | B41: IAOD871109AX0 | C41: ENCARGADO VEHICULOS | D41: OFICIALIA MAYOR | E41: 3388.95 | G41: 139.55 | H41: 3249.4
A42: JIMENEZ GUTIERREZ MA DEL CARMEN | B42: GOJL780918727 | C42: OFICIAL REGISTRO CIVIL | D42: REGISTRO CIVIL | E42: =H42+G42 -> 4820.4 | G42: 491.4 | H42: 4329 | I42: =J42/30 -> 300 | J42: 9000
A43: GODINEZ ZUÑIGA MA.LOURDES | B43: GOZM720317RZ9 | C43: AUX REGISTRO CIVIL | D43: REGISTRO CIVIL | E43: =H43-F43 -> 1758.9 | F43: 87.3 | H43: 1846.2
A44: ORTEGA BARRAGAN ALICIA | C44: SECRETARIA | D44: REGISTRO CIVIL | E44: =H44+G44 -> 2839.95 | G44: 59.75 | H44: 2780.2
A45: CAMPOS AVILA CECILIA | B45: CAAC830517NJ9 | C45: AUX REGISTRO CIVIL | D45: REGISTRO CIVIL | E45: 3721.95 | G45: 304.55 | H45: 3417.4
A46: ALBERTO FLORES SANCHEZ | C46: AUX REGISTRO CIVIL | D46: REGISTRO CIVIL | E46: 1999.95 | F46: 71.69 | H46: =E46+F46 -> 2071.64 | I46: =J46/30 -> 133.3333333 | J46: 4000
A47: ORTEGA MUÑIZ JOSE LUIS | B47: OEML550719289 | C47: PROMOTOR EDUCACION | D47: CASA DE CULTURA | E47: 4107.9 | G47: 366.3 | H47: 3741.6
A48: VELASCO CERVANTES ANA ROSA | B48: VECA841116P3A | C48: SECRETARIA | D48: CASA DE CULTURA | E48: 2760.45 | G48: 50.85 | H48: 2709.6
A49: TRUJILLO DIAZ SANDRA | C49: BIBLIOTECARIA | D49: CASA DE CULTURA | E49: 2485.99 | G49: 6.04 | H49: 2479.95
A50: JIMENEZ ENRIQUE ANA ROSA | C50: BIBLIOTECARIA | D50: CASA DE CULTURA | E50: 2868.45 | G50: 62.65 | H50: 2805.8
A51: GODINEZ VALDIVIA EFRAIN | B51: GOVE770726A66 | C51: PROMOTOR CULTURA | D51: CASA DE CULTURA | E51: 2583.88 | G51: 16.69 | H51: 2567.19
A52: BELLO GIL OSCAR EDGARDO | C52: AUX. CASA CULTURA | D52: CASA DE CULTURA | E52: 3027.9 | G52: 80.1 | H52: 2947.8
A53: ORTEGA MENDOZA JORGE | B53: OEMJ550423KG7 | C53: VELADOR | D53: CASA DE CULTURA | E53: =H53-F53 -> 1579.95 | F53: 110.45 | H53: 1690.4
A54: ORTEGA FERNANDEZ ANASTACIO | B54: SAGP581106HF6 | C54: DIRECTOR CASA CULTURA | D54: CASA DE CULTURA | E54: 5287.5 | G54: 582.15 | H54: =E54-G54 -> 4705.35 | I54: =J54/30 -> 366.6666667 | J54: 11000
A55: NAVARRO HURTADO GUILLERMO | C55: DEPORTE ESCOLAR | D55: CASA DE CULTURA | E55: 3402 | G55: 141 | H55: 3261 | I55: 226.8 | J55: 6804
A56: ORTEGA CERVANTES CARLOS | B56: MASJ5505041N5 | C56: PROMOTOR DEPORTIVO | D56: CASA DE CULTURA | E56: 3499.95 | G56: 151.65 | H56: 3348.3 | I56: 233.3333333 | J56: 7000
A57: GONZALEZ GODINEZ GERARDO | B57: CORG791111989 | C57: CONTRALOR | D57: CONTRALORIA | E57: 4999.95 | G57: 523.54 | H57: 4476.41 | I57: 333.3333333 | J57: 10000
A58: JAIME LOPES OCEGUEDA | C58: DELEGADO SN MIGUEL | D58: DELEGACIONES | E58: 2101.95 | F58: 64.05 | H58: =E58+F58 -> 2166 | I58: 200 | J58: 6000
A59: LOPEZ HENRRIQUEZ GUILLERMO | C59: DELEGADO MALTARAÑA | D59: DELEGACIONES | E59: 2101.95 | F59: 64.05 | H59: =E59+F59 -> 2166 | I59: 200 | J59: 6000
A60: TORRES LOPEZ ENRIQUE ALBERTO | C60: DELEGADO SN AGUSTIN | D60: DELEGACIONES | E60: 2101.95 | F60: 64.05 | H60: 2166 | I60: 200 | J60: 6000
A61: BRISEÑO RODRIGUEZ JUAN CARLOS | B61: BIRJ830511DE8 | C61: CONTROL PRESUPUESTAL | D61: HACIENDA MUNICIPAL | E61: =H61+G61 -> 4620 | G61: 455.4 | H61: 4164.6
A62: LOPEZ LOPEZ JESSICA | B62: LOLJ920103BG3 | C62: AUXILIAR EGRESOS | D62: HACIENDA MUNICIPAL | E62: =H62+G62 -> 2746.95 | G62: 49.35 | H62: 2697.6
A63: GARCIA NAVARRO LOURDES | C63: ENCARGADA DE EGRESOS | D63: HACIENDA MUNICIPAL | E63: =H63+G63 -> 3675 | G63: 297.2 | H63: 3377.8
A64: HERNANDEZ VELASCO CAROLINA | C64: AUXILIAR DE INGRESOS | D64: HACIENDA MUNICIPAL | E64: =H64+G64 -> 2981.4 | G64: 74.8 | H64: 2906.6
A65: RAMOS CRUZ JOSE DE JESUS | B65: RACJ501003LK6 | C65: NOTIFICADOR | D65: HACIENDA MUNICIPAL | E65: =H65+G65 -> 3444.45 | G65: 145.65 | H65: 3298.8
A66: CERDA CARRILLO MAYRA DEL ROSARIO | C66: ENC RECURSOS HUMANOS | D66: HACIENDA MUNICIPAL | E66: =H66+G66 -> 2981.4 | G66: 75 | H66: 2906.4
A67: MARTINEZ RAZO DELIA | B67: MARD630717LV9 | C67: SECRETARIA | D67: HACIENDA MUNICIPAL | E67: 2683.5 | G67: 42.5 | H67: 2641
A68: ORTEGA HERNANDEZ GABRIEL | B68: OEHG550515B42 | C68: SUPERVISOR | D68: HACIENDA MUNICIPAL | E68: 2977.95 | G68: 74.55 | H68: 2903.4
A69: JOSE RAQUEL OCHO RUIZ | C69: RECAUDADOR | D69: HACIENDA MUNICIPAL | E69: 1984.3 | G69: 49.6 | H69: =E69-G69 -> 1934.7 | I69: =J69/30 -> 198.4333333 | J69: 5953
A70: LOPEZ HERNANDEZ TOMAS | C70: JEFE DE PADRON Y LICENCIAS | D70: HACIENDA MUNICIPAL | E70: 1719.9 | F70: 94.74 | H70: 1814.64
A71: MELGOZA BAUTISTA RAMON | C71: RECAUDADOR | D71: HACIENDA MUNICIPAL | E71: 1190.76 | F71: 135.51 | H71: 1326.27
A72: HERNANDEZ ORTEGA ANTONIO | C72: RECAUDADOR | D72: HACIENDA MUNICIPAL | E72: 1404.41 | F72: 121.84 | H72: 1526.25
A73: MOLINA SAHAGUN CESAR CELESTINO | B73: JIVG771018NZ8 | C73: ENCARGADO HDA MUNICIPAL | D73: HACIENDA MUNICIPAL | E73: 9499.95 | G73: 1481.93 | H73: =E73-G73 -> 8018.02
A74: CORTES ROMERO VICTORIA | B74: LOHT650121S12 | C74: JEFE PADRON Y LICENCIAS | D74: HACIENDA MUNICIPAL | E74: 3251.55 | G74: 124.62 | H74: =E74-G74 -> 3126.93 | I74: =J74/30 -> 216.6666667 | J74: 6500
A75: AGUILAR GARCIA MARIO ALBERTO | C75: AUX. DE TESORERIA | D75: HACIENDA MUNICIPAL | E75: 2883.45 | G75: 64.3 | H75: 2819.15
A76: BAÑUELOS LOPEZ ANA MARTHA | C76: SECRETARIA | D76: CATASTRO | E76: =H76+G76 -> 2981.4 | G76: 75 | H76: 2906.4
A77: SALAZAR GARCIA DOMINGO | C77: AUXILIAR ADMINISTRATIVO | D77: CATASTRO | E77: =H77+G77 -> 2981.4 | G77: 75 | H77: 2906.4
A78: LOPEZ HERNANDEZ IGNACIO | B78: LOHI590731FB3 | C78: APREMIOS | D78: CATASTRO | E78: 2584.5 | G78: 16.9 | H78: 2567.6
A79: ORTEGA JIMENEZ GERARDO | B79: OEJG7411025J3 | C79: DIBUJANTE | D79: CATASTRO | E79: 2712.45 | G79: 45.85 | H79: 2666.6
A80: GONZALEZ JIMENEZ RAFAEL | B80: GOJR5512078R1 | C80: AUXILIAR LEVANTAMIENTO | D80: CATASTRO | E80: 3268.5 | G80: 126.3 | H80: 3142.2
A81: LOPEZ SOTELO RAFAEL | B81: VAVA7706286J2 | C81: JEFE CATASTRO | D81: CATASTRO | E81: 4762.5 | G81: 480.99 | H81: =E81-G81 -> 4281.51 | I81: =J81/30 -> 317.5 | J81: 9525
A82: GOMEZ VELASCO ALEJANDRO | C82: CHOFER MECANICO | D82: OBRAS PUBLICAS | E82: 2649.46 | G82: 21.49 | H82: 2627.97
A83: RIVERA LOPEZ PEDRO | C83: JEFE PROYECTOS | D83: OBRAS PUBLICAS | E83: 4536 | G83: 440.4 | H83: 4095.6
A84: RODRIGUEZ PEREZ BERENICE | C84: AUXILIAR OBRAS PUBLICAS | D84: OBRAS PUBLICAS | E84: 3975.45 | G84: 345.05 | H84: 3630.4
A85: SAHAGUN JIMENEZ MARTHA GUADALUPE | C85: SECRETARIA | D85: OBRAS PUBLICAS | E85: 2981.4 | G85: 75 | H85: 2906.4
A86: SAHAGUN GONZALEZ JOSE LUIS | B86: SAGL740502EC7 | C86: AUXILIAR URBANISMO | D86: OBRAS PUBLICAS | E86: 3969 | G86: 344.2 | H86: 3624.8
A87: SAHAGUN GONZALEZ PABLO | B87: SAGP680209KZ1 | C87: JEFE URBANISMO | D87: OBRAS PUBLICAS | E87: 5669.85 | G87: 663.85 | H87: 5006
A88: PORRAS LOPEZ ERNESTO | C88: TOPOGRAFO | D88: OBRAS PUBLICAS | E88: 4976.45 | G88: 440.4 | H88: 4536.05
A89: RIZO ARRIAGA JORGE | B89: RIAJ620913NE4 | C89: OFICIAL ALBAÑIL A | D89: OBRAS PUBLICAS | E89: 3277.5 | G89: 127.5 | H89: 3150
A90: CRUZ GARCIA BRAULIO | B90: CUGB600402F87 | C90: OFICIAL ALBAÑIL B | D90: OBRAS PUBLICAS | E90: 3118.35 | G90: 110.15 | H90: 3008.2
A91: GODINEZ LOPEZ GERARDO | B91: GOLG670926BM3 | C91: OPERADOR MAQUINA | D91: OBRAS PUBLICAS | E91: 2836.2 | G91: 59.2 | H91: 2777
A92: ESTRADA SOLIS MANUEL | C92: OPERADOR MAQUINA | D92: OBRAS PUBLICAS | E92: 2836.16 | G92: 59.16 | H92: 2777
A93: BRISEÑO JIMENEZ VICTOR MAGDALENO | C93: CHOFER MECANICO | D93: OBRAS PUBLICAS | E93: 2953.95 | G93: 71.95 | H93: 2882
A94: JIMENEZ MUNGUIA FRANCISCO RAMON | C94: AYUDANTE ALBAÑIL A | D94: OBRAS PUBLICAS | E94: 2683.54 | G94: 42.54 | H94: 2641
A95: VILLARRUEL MURILLO PABLO | C95: AYUDANTE ALBAÑIL B | D95: OBRAS PUBLICAS | E95: =H95-F95 -> 2427 | F95: 0.2 | H95: 2427.2
A96: HERNANDEZ PEREZ JUAN | C96: ALMACENISTA | D96: OBRAS PUBLICAS | E96: =H96+G96 -> 2883.45 | G96: 64.25 | H96: 2819.2
A97: LOPEZ HERNANDEZ ARTURO | C97: DIRECTOR OBAS | D97: OBRAS PUBLICAS | E97: 6499.95 | G97: 841.13 | H97: =E97-G97 -> 5658.82 | I97: =J97/30 -> 433.3333333 | J97: 13000
A98: BECERRA SAHAGUN ERNESTO | B98: BESE720209NF5 | C98: SUPERVISOR DE OBRAS | D98: OBRAS PUBLICAS | E98: 4535.55 | G98: 440.32 | H98: =E98-G98 -> 4095.23 | I98: =J98/30 -> 302.3666667 | J98: 9071
A99: GOMEZ ORTEGA PATRICIA | B99: GOOP690709UV4 | C99: SECRETARIA | D99: SERVICIOS PUBLICOS | E99: =H99+G99 -> 3507 | G99: 152.4 | H99: 3354.6
A100: LOPEZ CAMARENA MARTIN | B100: LOCM631231I72 | C100: ENCARGADO CEMENTERIO | D100: SERVICIOS PUBLICOS | E100: =H100-F100 -> 2085.9 | F100: 65.9 | H100: 2151.8
A101: SAHAGUN GUTIERREZ ANTONIO | B101: SAGA4406072K6 | C101: AUXILIAR RASTRO | D101: SERVICIOS PUBLICOS | E101: =H101-F101 -> 2168.12 | F101: 63.78 | H101: 2231.9
A102: RANGEL GONZALEZ RICARDO | B102: RAGR610809BS0 | C102: ELECTRICISTA A | D102: SERVICIOS PUBLICOS | E102: =H102+G102 -> 3681 | G102: 298 | H102: 3383
A103: JIMENEZ BARRETO RAMON | B103: JIBR561029RR5 | C103: ELECTRICISTA B | D103: SERVICIOS PUBLICOS | E103: 3402 | G103: 141 | H103: 3261
A104: ORTEGA CHAVEZ ALBERTO | C104: AYUDANTE ELECTRICISTA | D104: SERVICIOS PUBLICOS | E104: =H104-F104 -> 2268 | F104: 32 | H104: 2300
A105: ZEPEDA SALGADO ARNULFO | B105: ZESA680915AH4 | C105: CHOFER | D105: SERVICIOS PUBLICOS | E105: =H105+G105 -> 3500.4 | G105: 151.6 | H105: 3348.8
A106: LOPEZ ORDAS ROSENDO | B106: LOOR710919T96 | C106: CHOFER | D106: SERVICIOS PUBLICOS | E106: =H106+G106 -> 3500.4 | G106: 151.8 | H106: 3348.6
A107: DIAZ LOPEZ MARTIN | C107: CHOFER | D107: SERVICIOS PUBLICOS | E107: 3500.4 | G107: 151.8 | H107: 3348.6
A108: VILLARRUEL CHAVEZ DIEGO IVAN | C108: CHOFER | D108: SERVICIOS PUBLICOS | E108: =H108-F108 -> 2247.96 | F108: 34.26 | H108: 2282.22
A109: ORTEGA RODRIGUEZ GILBERTO | B109: OERG810206GLA | C109: CHOFER | D109: SERVICIOS PUBLICOS | E109: =H109+G109 -> 2809.95 | G109: 56.15 | H109: 2753.8 | BU109: |
A110: GONZALEZ LEON RAMON | B110: GOLR540831K92 | C110: AUXILIAR DE ASEO | D110: SERVICIOS PUBLICOS | E110: =H110+G110 -> 2484 | G110: 6 | H110: 2478
A111: RODRIGUEZ DAVILA BASILIO | C111: AUXILIAR DE ASEO | D111: SERVICIOS PUBLICOS | E111: 2484 | G111: 5.8 | H111: 2478.2
A112: RAMIREZ LIMON MARTIN | C112: AUXILIAR DE ASEO | D112: SERVICIOS PUBLICOS | E112: 2484 | G112: 5.8 | H112: 2478.2
A113: ZEPEDA SALGADO JOSE EDUARDO | C113: AUXILIAR DE ASEO | D113: SERVICIOS PUBLICOS | E113: 2484 | G113: 5.8 | H113: 2478.2
A114: AYALA BRISEÑO DOMINGO | C114: AUXILIAR DE ASEO | D114: SERVICIOS PUBLICOS | E114: 2493 | G114: 6 | H114: 2487
A115: CRUZ LOPEZ LUIS | B115: CULL600106CC9 | C115: AUXILIAR DE ASEO | D115: SERVICIOS PUBLICOS | E115: 2484 | G115: 5.8 | H115: 2478.2
A116: MACIEL BARBOSA JOSE LUIS | C116: AUXILIAR DE ASEO | D116: SERVICIOS PUBLICOS | E116: 2484 | G116: 6 | H116: 2478
A117: MACIEL BARBOZA MARTIN | C117: AUXILIAR DE ASEO | D117: SERVICIOS PUBLICOS | E117: 2484 | G117: 6 | H117: 2478
A118: NAVARRETE ALFARO CRISTINA | C118: BARRENDERA | D118: SERVICIOS PUBLICOS | E118: =H118-F118 -> 1710.9 | F118: 102.1 | H118: 1813
A119: MUNGUIA RAMOS MARICELA | C119: BARRENDERA | D119: SERVICIOS PUBLICOS | E119: =H119-F119 -> 1710.9 | F119: 102.1 | H119: 1813
A120: PEREZ SOTELO J. SANTOS | C120: BARRENDERA | D120: SERVICIOS PUBLICOS | E120: 1627.95 | F120: 107.45 | H120: 1735.4
A121: GARCIA PEREZ JUAN MANUEL | B121: OERG7803155I6 | C121: DIRECTOR SERV PUBLICOS | D121: SERVICIOS PUBLICOS | E121: 5152.5 | G121: 553.32 | H121: =E121-G121 -> 4599.18
A122: LOPEZ ORTEGA ABEL | C122: ADMINISTRADOR RASTRO | D122: SERVICIOS PUBLICOS | E122: 3108 | G122: 109 | H122: =E122-G122 -> 2999
A123: VILLANUEVA DIAZ MAURO | B123: ZAMJ501130MA9 | C123: JEFE DE ASEO | D123: SERVICIOS PUBLICOS | E123: 3684.75 | G123: 298.61 | H123: =E123-G123 -> 3386.14
A124: ARROYO ORTEGA DAVID | C124: ASISTENTE | D124: ECOLOGIA PARQUES Y JARDINES | E124: =H124+G124 -> 2551.5 | G124: 13.26 | H124: 2538.24
A125: CERVANTES NAVARRO EVELYN AZUCENA | C125: AUXILIAR | D125: ECOLOGIA PARQUES Y JARDINES | E125: 2350.95 | F125: 8.65 | H125: 2359.6
A126: ALVAREZ AGUIRRE MIGUEL | C126: JARDINERO A | D126: ECOLOGIA PARQUES Y JARDINES | E126: 2385 | F126: 5 | H126: 2390
A127: CRUZ ARIZMENDI J.REFUGIO | C127: JARDINERO B | D127: ECOLOGIA PARQUES Y JARDINES | E127: =H127-F127 -> 2253 | F127: 33.8 | H127: 2286.8
A128: RODRIGUEZ JIMENEZ LUIS | C128: JARDINERO B | D128: ECOLOGIA PARQUES Y JARDINES | E128: 2253 | F128: 33.8 | H128: 2286.8
A129: LOPEZ GONZALEZ JAVIER | C129: JARDINERO C | D129: ECOLOGIA PARQUES Y JARDINES | E129: 2164.95 | F129: 57.05 | H129: 2222
A130: MURILLO HERNANDEZ MARTIN | C130: JARDINERO C | D130: ECOLOGIA PARQUES Y JARDINES | E130: 2164.95 | F130: 57.25 | H130: 2222.2
A131: RODRIGUEZ SEGURA OFELIA | B131: ROSO580610IE9 | C131: JARDINERO MALTARAÑA | D131: ECOLOGIA PARQUES Y JARDINES | E131: 1927.5 | F131: 76.3 | H131: 2003.8
A132: BRAVO ALVAREZ SAUL | C132: JARDINERO F | D132: ECOLOGIA PARQUES Y JARDINES | E132: 2325.9 | F132: 25.7 | H132: 2351.6
A133: GARCIA GARCIA MELQUIADES | C133: JARDINERO G | D133: ECOLOGIA PARQUES Y JARDINES | E133: =H133+G133 -> 2484.45 | G133: 5.85 | H133: 2478.6
A134: GONZALEZ GODINEZ ALBERTO | C134: JARDINERO H | D134: ECOLOGIA PARQUES Y JARDINES | E134: =H134-F134 -> 2484.45 | F134: 55.55 | H134: 2540
A135: OCEGUEDA REYES JOSE ISMAEL | C135: JARDINERO SN MIGUEL | D135: ECOLOGIA PARQUES Y JARDINES | E135: =H135-F135 -> 2193 | F135: 54 | H135: 2247
A136: GARCIA VACA CECILIA | C136: JARDINERO | D136: ECOLOGIA PARQUES Y JARDINES | E136: 1308.75 | F136: 127.85 | H136: 1436.6
A137: GARCIA TORO SALVADOR | C137: CHOFER PIPA | D137: ECOLOGIA PARQUES Y JARDINES | E137: =H137+G137 -> 2741.67 | G137: 48.87 | H137: 2692.8
A138: LOPEZ MURILLO GUILLERMO | C138: DIRECTOR ECOLOGIA | D138: ECOLOGIA PARQUES Y JARDINES | E138: 4750.05 | G138: 478.75 | H138: =E138-G138 -> 4271.3 | I138: =J138/30 -> 273.5333333 | J138: 8206
A139: PEREZ CAUDILLO ALBERTO | C139: AUXILIAR | D139: ECOLOGIA PARQUES Y JARDINES | E139: 2350.95 | F139: 8.65 | H139: =E139+F139 -> 2359.6
A140: GODINEZ BARBOSA RICARDO | B140: GOBR670420186 | C140: JEFE AGUA POTABLE | D140: AGUA POTABLE Y ALCANTARILLADO | E140: =H140+G140 -> 3969 | G140: 344 | H140: 3625
A141: GODINEZ RAZO RUBEN | B141: GORR580402RC8 | C141: FONTANERO | D141: AGUA POTABLE Y ALCANTARILLADO | E141: 3627 | G141: 183.2 | H141: 3443.8
A142: IÑIGUEZ LARA LEOPOLDO | C142: FONTANERO SN MIGUEL | D142: AGUA POTABLE Y ALCANTARILLADO | E142: =H142-F142 -> 2189.4 | F142: 54.4 | H142: 2243.8
A143: TRUJILLO MANJARREZ VALENTIN | C143: FONTANERO SN AGUSTIN | D143: AGUA POTABLE Y ALCANTARILLADO | E143: =H143-F143 -> 2189.4 | F143: 54.6 | H143: 2244
A144: DELGADO TERRONES J. DOLORES | C144: ADMIN. AGUA POTABLE | D144: AGUA POTABLE Y ALCANTARILLADO | E144: 1984.5 | F144: 72.7 | H144: 2057.2
A145: GONZALEZ CAMPOS ERNESTO | C145: AYUDANTE | D145: AGUA POTABLE Y ALCANTARILLADO | E145: =H145+G145 -> 2494.95 | G145: 7.15 | H145: 2487.8
A146: LOREDO LOREDO J.MIGUEL | C146: AYUDANTE | D146: AGUA POTABLE Y ALCANTARILLADO | E146: =H146+G146 -> 2494.95 | G146: 7.15 | H146: 2487.8
A147: HERNANDEZ GONZALEZ FRANCISCO | C147: AYUDANTE | D147: AGUA POTABLE Y ALCANTARILLADO | E147: 2494.5 | G147: 6.9 | H147: 2487.6
A148: RODRIGUEZ MENDOZA RUBEN | C148: AUXILIAR AGUA Y DRENAJE | D148: AGUA POTABLE Y ALCANTARILLADO | E148: 3279.45 | G148: 127.65 | H148: 3151.8
A149: NAVARRO SUAREZ JUAN ANTONIO | C149: ENCARG VALVULAS | D149: AGUA POTABLE Y ALCANTARILLADO | E149: 2494.95 | G149: 7.15 | H149: 2487.8
A150: GONZALEZ ORTEGA RAUL | C150: ENCARG VALVULAS | D150: AGUA POTABLE Y ALCANTARILLADO | E150: 2944.5 | G150: 70.9 | H150: 2873.6
A151: ABELINO CASTELLANOS | B151: LINO | C151: JUEZ MUNICIPAL | D151: JUEZ MUNICIPAL | E151: 4000.05 | G151: 349.05 | H151: 3651
A152: GARIBAY MUÑIZ RODRIGO | C152: DIRECTOR TURISMO | D152: TURISMO | E152: 3000 | G152: 76.98 | H152: =E152-G152 -> 2923.02 | I152: =J152/30 -> 200 | J152: 6000
A153: CASTELLANOS BAÑUELOS MA. EUGENIA | C153: AUX. TURISMO | D153: TURISMO | E153: =H153-F153 -> 2247.8 | F153: 34.4 | H153: 2282.2
A154: RAMIREZ ESPARZA GILBERTO | C154: AUXILIAR DE INTENDECIA | D154: PENSIONADOS | E154: =H154-F154 -> 918.3 | F154: 152.9 | H154: 1071.2
A155: BARBOZA GONZLAEZ J.SANTOS | C155: JARDINERO A | D155: PENSIONADOS | E155: =H155+G155 -> 2792.55 | G155: 54.55 | H155: 2738
A156: ARIZAGA GONZALEZ GRACIELA | C156: INTENDENTE | D156: PENSIONADOS | E156: =H156-F156 -> 1356.15 | F156: 124.85 | H156: 1481
A157: LOPEZ MEJIA FELIPE | C157: AUXILIAR DE ASEO | D157: PENSIONADOS | E157: =H157-F157 -> 1968.75 | F157: 73.65 | H157: 2042.4
A158: OCEGUEDA OCEGUEDA REFUGIO | C158: JARDINERO | D158: PENSIONADOS | E158: 1353.45 | F158: 125.15 | H158: 1478.6
A159: CRUZ JIMENEZ SILVINO | C159: INTENDENTE | D159: PENSIONADOS | E159: 999.9 | F159: 147.7 | H159: 1147.6
A160: RICO AMADOR JOSE | B160: I | C160: INTENDENTE | D160: PENSIONADOS | E160: 999.9 | F160: 147.7 | H160: 1147.6
A161: ORTEGA BRISEÑO ANA ROSA | B161: OEBA890212PK0 | C161: SECRETARIA | D161: DESARROLLO SOCIAL | E161: =H161+G161 -> 2981.56 | G161: 74.96 | H161: 2906.6
A162: VELASCO VELASCO DAVID | B162: CAGX6409063F6 | C162: DIRECTOR DESARR. SOCIAL | D162: DESARROLLO SOCIAL | E162: 4750.05 | G162: 478.75 | H162: =E162-G162 -> 4271.3 | I162: =J162/30 -> 316.6666667 | J162: 9500
A163: VEGA NAVA ANGEL IVAN | B163: NASI740826E66 | C163: JEFE PROMOCION ECONOMICA | D163: DESARROLLO SOCIAL | E163: 4750.05 | G163: 478.75 | H163: =E163-G163 -> 4271.3 | I163: =J163/30 -> 316.6666667 | J163: 9500
A164: JIEMENZ GODINEZ MARTHA LILIANA | B164: GAAG700511RLA | C164: ENCARG PROG SOCIALES | D164: DESARROLLO SOCIAL | E164: 2508.75 | G164: 8.61 | H164: =E164-G164 -> 2500.14
A165: FLORES RAMIREZ EMILIO | B165: MEBS731109EF5 | C165: DIRECTOR DESARR RURAL | D165: DESARROLLO RURAL | E165: 4764 | G165: 481.25 | H165: =E165-G165 -> 4282.75
A166: JIMENEZ MONTES JOSE DANIEL | B166: MAMJ7605214S4 | C166: GESTOR PROG AGROPEC | D166: DESARROLLO RURAL | E166: 3596.25 | G166: 179.85 | H166: =E166-G166 -> 3416.4
A167: HERNANDEZ LOMELI LUIS ERNESTO | C167: AUXILIAR DES RURAL | D167: DESARROLLO RURAL | E167: =H167-F167 -> 2268 | F167: 32.2 | H167: 2300.2
D168: TOTAL A PAGAR | E168: =SUM(E8:E167) -> 557672.55 | F168: =SUM(F8:F167) -> 3434.39 | G168: =SUM(G8:G167) -> 38807.73 | H168: =SUM(H8:H167) -> 522299.21
A170: NOMINA DE SEGURIDAD PUBLICA 1° QUINCENA DEL MES DE OCTUBRE 2015
A171: NOMINA DE SEGURIDAD PUBLICA
A172: (2) | B172: (3) | C172: (4) | D172: (4)
A173: HERRERA GUZMAN YESSICA BERENICE | C173: OFICIAL DARE | D173: SEGURIDAD PUBLICA | E173: =H173+G173 -> 4608.38 | G173: 453.38 | H173: 4155
A174: ESCUTIA HERNANDEZ ISABEL | C174: POLICIA | D174: SEGURIDAD PUBLICA | E174: 3265.54 | G174: 126.14 | H174: 3139.4
A175: HERRERA TAMAYO SOCORRO | C175: SECRETARIA | D175: SEGURIDAD PUBLICA | E175: 2981.36 | G175: 74.96 | H175: 2906.4
A176: HERNANDEZ HERNANDEZ JOSE SANTIAGO | C176: POLICIA | D176: SEGURIDAD PUBLICA | E176: 3265.54 | G176: 126.14 | H176: 3139.4
A177: CAGAL CAPORAL GUILLERMO | C177: POLICIA | D177: SEGURIDAD PUBLICA | E177: 3265.54 | G177: 126.14 | H177: 3139.4
A178: FRANCO MENESES OCTAVIO | C178: CABO | D178: SEGURIDAD PUBLICA | E178: 3972.21 | G178: 344.61 | H178: 3627.6
A179: SALVADOR BAUTISTA JULIAN | C179: POLICIA | D179: SEGURIDAD PUBLICA | E179: 3265.54 | G179: 126.14 | H179: 3139.4
A180: MAYO LOPEZ GUADALUPE | B180: MALG790904EU5 | C180: OFICIAL DARE | D180: SEGURIDAD PUBLICA | E180: 4608.38 | G180: 453.38 | H180: 4155
A181: EPINOZA MARCELINO MAXIMINO | B181: EIMM661012BG9 | C181: COMANDANTE | D181: SEGURIDAD PUBLICA | E181: 4608.58 | G181: 453.38 | H181: 4155.2
A182: BARAJAS GALLEGOS GERARDO | C182: CHOFER | D182: SEGURIDAD PUBLICA | E182: 3572.01 | G182: 177.21 | H182: 3394.8
A183: RAMIREZ GONZALEZ MARIA GUADALUPE | C183: POLICIA | D183: SEGURIDAD PUBLICA | E183: 3265.34 | G183: 126.14 | H183: 3139.2
A184: DELGADO GONZALEZ ISMAEL | C184: POLICIA | D184: SEGURIDAD PUBLICA | E184: 3265.54 | G184: 126.14 | H184: 3139.4
A185: NAVARRO ANGEL JUAN JOSE | C185: POLICIA | D185: SEGURIDAD PUBLICA | E185: 3265.54 | G185: 126.14 | H185: 3139.4
A186: VAZQUEZ FLORES J. SALOME | C186: CHOFER | D186: SEGURIDAD PUBLICA | E186: 3572.01 | G186: 177.21 | H186: 3394.8
A187: SANTIAGO CRUZ MANUEL | C187: CABO | D187: SEGURIDAD PUBLICA | E187: 3972.3 | G187: 344.7 | H187: 3627.6
A188: FERNANDEZ ESCUTIA DANIEL | C188: POLICIA | D188: SEGURIDAD PUBLICA | E188: 3265.54 | G188: 126.14 | H188: 3139.4
A189: DE LA TORRE LEON CESAR JOEL | C189: POLICIA | D189: SEGURIDAD PUBLICA | E189: 3265.54 | G189: 126.14 | H189: 3139.4
A190: LARA REYNOSA EMMANUEL SALVADOR | C190: POLICIA | D190: SEGURIDAD PUBLICA | E190: 3265.54 | G190: 126.14 | H190: 3139.4
A191: MENDOZA PALOMAR IGNACIO | C191: POLICIA | D191: SEGURIDAD PUBLICA | E191: 3265.54 | G191: 126.14 | H191: 3139.4
A192: LARA VAZQUEZ JUANA ESMERALDA | C192: POLICIA | D192: SEGURIDAD PUBLICA | E192: 3265.54 | G192: 126.14 | H192: 3139.4
A193: CONTRERAS FLORES CHRISTIAN JESUS | C193: POLICIA | D193: SEGURIDAD PUBLICA | E193: 3265.54 | G193: 126.14 | H193: 3139.4
A194: RODRIGUEZ GONZALEZ LUIS EDUARDO | C194: CHOFER | D194: SEGURIDAD PUBLICA | E194: 3572.01 | G194: 177.21 | H194: 3394.8
A195: MONTES JIMENEZ ULISES GERARDO | C195: POLICIA | D195: SEGURIDAD PUBLICA | E195: 3265.54 | G195: 126.14 | H195: 3139.4
A196: PADILLA MENDEZ JUAN CARLOS | C196: POLICIA | D196: SEGURIDAD PUBLICA | E196: 3265.54 | G196: 126.14 | H196: 3139.4
A197: JIMENEZ CALDERON CARMEN | C197: POLICIA | D197: SEGURIDAD PUBLICA | E197: 3265.63 | G197: 126.14 | H197: 3139.49
A198: MARTINEZ RODRIGUEZ JOSE EDURADO | C198: CHOFER | D198: SEGURIDAD PUBLICA | E198: 3972.21 | G198: 344.61 | H198: 3627.6
A199: GARCIA GONZALEZ EDITH YANELY | C199: POLICIA | D199: SEGURIDAD PUBLICA | E199: 870.8 | G199: 33.64 | H199: 837.16
A200: RODRIGUEZ GOMEZ CARLOS GIOVANI | C200: POLICIA | D200: SEGURIDAD PUBLICA | E200: 3265.54 | G200: 126.14 | H200: 3139.4
A201: REYES SALDAÑA FRANCISCO | C201: POLICIA | D201: SEGURIDAD PUBLICA | E201: 1523.9 | G201: 58.87 | H201: 1465.03
A202: GILBERT HERNANDEZ MAYRA ELIZABETH | C202: POLICIA | D202: SEGURIDAD PUBLICA | E202: 3265.54 | G202: 126.14 | H202: 3139.4
A203: ESQUIVEL ANGUIANO FELIPE | C203: POLICIA | D203: SEGURIDAD PUBLICA | E203: 3265.54 | G203: 126.14 | H203: 3139.4
A204: SAHAGUN HERNNADEZ ANA LAURA | C204: POLICIA | D204: SEGURIDAD PUBLICA | E204: 3265.54 | G204: 126.14 | H204: 3139.4
A205: RODRIGUZ ROMERO OSCAR | C205: POLICIA | D205: SEGURIDAD PUBLICA | E205: 1306.2 | G205: 50.46 | H205: 1255.74
... 12 more rows
